bitfinex-derivatives/quotes_SOLF0:USTF0_20240910
["timestamp","ask_amount","ask_price","bid_price","bid_amount"]
[1725990744347,1.3854,136.02,135.99,3.6763]
[1725990744549,12.6954,136.02,135.97,11.31]
[1725990745048,12.6954,136.02,135.98,3.6766]
[1725990748558,12.6954,136.02,135.99,3.6765]
[1725990749859,12.6954,136.02,135.98,11.31]
[1725990749860,1.3854,136.02,135.98,11.31]
[1725990750862,1.3854,136.02,135.99,11.31]
[1725990751355,1.3854,136.02,136.0,3.6762]
[1725990751563,1.3854,136.02,135.98,11.31]
[1725990751757,1.3854,136.02,135.98,14.9866]
[1725990751958,1.3854,136.02,135.98,11.31]
[1725990752759,1.3854,136.02,135.99,3.6764]
[1725990754767,1.3854,136.02,135.98,14.9866]
[1725990755562,1.3854,136.02,135.99,3.6764]
[1725990757357,12.6954,136.02,135.92,1.5378]
[1725990757566,12.6954,136.02,135.96,11.31]
[1725990757865,12.6954,136.02,135.97,3.6769]
[1725990759668,12.6022,136.01,135.96,3.6772]
[1725990760060,12.6022,136.01,135.95,11.31]
[1725990761266,12.6022,136.01,135.97,3.677]
[1725990762571,12.6022,136.01,135.98,3.6767]
[1725990762771,1.2922,136.01,135.98,3.6767]
[1725990764174,1.2922,136.01,135.97,14.9869]
[1725990766474,1.2922,136.01,135.97,3.6769]
[1725990768976,12.6022,136.01,135.94,11.31]
[1725990769674,12.6022,136.01,135.96,3.6772]
[1725990770781,1.2922,136.01,135.97,3.6769]
[1725990773476,1.2922,136.01,135.98,3.6767]
[1725990774480,1.3854,136.02,135.98,11.31]
[1725990774681,11.31,136.04,135.99,11.31]
[1725990774876,1.3043,136.05,135.99,11.31]
[1725990775585,1.3043,136.05,136.01,3.6758]
[1725990781186,11.31,136.03,135.92,7.3567]
[1725990781388,11.31,136.03,135.97,11.31]
[1725990781590,11.31,136.03,136.0,3.6761]
[1725990784192,1.3689,136.06,136.01,11.31]
[1725990784692,1.3689,136.06,136.03,3.6753]
[1725990788293,12.6789,136.06,136.03,3.6753]
[1725990791887,11.31,136.04,135.96,0.5126]
[1725990792190,1.3689,136.06,136.0,11.31]
[1725990792191,12.6789,136.06,136.0,11.31]
[1725990794298,11.31,136.05,135.99,11.31]
[1725990794497,11.31,136.05,135.96,0.5126]
[1725990794805,11.31,136.05,135.98,11.31]
[1725990794997,11.31,136.05,136.0,3.6762]
[1725990797195,1.3689,136.06,136.0,3.6762]
[1725990797405,11.31,136.04,136.01,3.676]
[1725990802792,12.6789,136.06,136.02,3.6757]
[1725990803703,12.6789,136.06,136.03,3.6754]
[1725990804503,12.6789,136.06,136.0,11.31]
[1725990804907,1.3689,136.06,136.0,11.31]
[1725990805102,13.8699,136.07,136.02,3.6757]
[1725990805503,11.31,136.06,135.99,11.31]
[1725990805700,11.31,136.06,136.01,3.6758]
[1725990806114,11.31,136.04,136.01,3.6758]
[1725990807303,11.31,136.04,136.0,3.6762]
[1725990808705,11.31,136.04,135.99,11.31]
[1725990810312,11.31,136.04,136.01,3.6758]
[1725990811013,11.31,136.04,136.0,3.6761]
[1725990811905,11.31,136.04,136.01,3.6759]
[1725990813517,11.31,136.04,136.02,3.6755]
[1725990813913,11.31,136.03,135.96,0.5126]
[1725990814114,11.31,136.0,135.92,9.71413216]
[1725990814412,11.31,136.0,135.93,17.27191224]
[1725990814601,3.76903273,136.01,135.9,9.71413216]
[1725990814810,11.31,135.96,135.9,11.31]
[1725990815808,1.2657,135.99,135.91,11.31]
[1725990816013,11.31,135.98,135.91,11.31]
[1725990820214,11.31,135.98,135.93,11.31]
[1725990824421,11.31,135.98,135.91,11.31]
[1725990824717,1.2657,135.99,135.9,3.68047358]
[1725990824718,11.31,135.95,135.9,11.31]
[1725990824918,11.31,135.94,135.89,11.31]
[1725990826219,2.6584,135.97,135.87,11.31]
[1725990826220,11.31,135.93,135.87,11.31]
[1725990826618,11.31,135.93,135.86,11.31]
[1725990826821,11.31,135.93,135.89,3.6791]
[1725990827523,11.31,135.93,135.9,3.6789]
[1725990828013,11.31,135.94,135.9,3.6789]
[1725990831019,11.31,135.93,135.89,3.6791]
[1725990831422,11.31,135.93,135.9,3.6788]
[1725990834115,11.31,135.93,135.91,3.6787]
[1725990834923,11.31,135.93,135.9,3.6788]
[1725990839130,11.31,135.94,135.88,11.31]
[1725990839831,11.31,135.94,135.91,3.6785]
[1725990840025,11.31,135.93,135.87,11.31]
[1725990840227,11.31,135.93,135.86,3.67712047]
[1725990840423,11.31,135.93,135.87,11.31]
[1725990841031,11.31,135.93,135.9,3.6787]
[1725990841230,6.37821743,135.97,135.86,3.65945439]
[1725990841433,6.37821743,135.97,135.84,1.0253]
[1725990841434,11.31,135.94,135.88,11.31]
[1725990841738,11.31,135.94,135.92,3.6782]
[1725990841926,11.31,135.94,135.88,11.31]
[1725990842325,11.31,135.96,135.9,11.31]
[1725990843038,13.9684,135.97,135.91,11.31]
[1725990844239,13.9684,135.97,135.94,3.6777]
[1725990845331,11.31,135.96,135.88,11.31]
[1725990845533,2.6584,135.97,135.88,11.31]
[1725990845534,11.31,135.94,135.88,11.31]
[1725990845735,2.6584,135.97,135.92,3.6783]
[1725990846037,11.31,135.94,135.92,3.6783]
[1725990847436,11.31,135.94,135.91,3.6785]
[1725990847637,2.6584,135.97,135.91,3.6785]
[1725990847825,11.31,135.93,135.91,3.6785]
[1725990848227,11.31,135.93,135.9,3.6789]
[1725990848434,11.31,135.92,135.85,3.61538461]
[1725990848635,13.8528,135.92,135.85,14.92538461]
[1725990850026,13.8528,135.92,135.89,3.6791]
[1725990850231,2.5428,135.92,135.87,11.31]
[1725990851537,2.5428,135.92,135.89,3.6791]
[1725990856139,13.8528,135.92,135.89,3.6791]
[1725990858237,13.8528,135.92,135.9,3.6789]
[1725990868255,13.8528,135.92,135.89,3.6791]
[1725990870849,11.31,135.9,135.84,1.0253]
[1725990871055,11.31,135.89,135.82,11.31]
[1725990871555,11.31,135.89,135.86,3.6799]
[1725990872152,11.31,135.89,135.85,3.68]
[1725990872352,11.31,135.87,135.85,3.68]
[1725990873855,11.31,135.87,135.86,3.68]
[1725990875358,11.31,135.87,135.81,15.01222895]
[1725990876154,11.31,135.87,135.86,3.68]
[1725990876962,1.2764,135.91,135.86,3.68]
[1725990877149,11.31,135.89,135.86,3.68]
[1725990877862,11.31,135.89,135.82,11.31]
[1725990878359,11.31,135.87,135.81,17.30094458]
[1725990878560,11.31,135.87,135.81,11.31]
[1725990878948,11.31,135.86,135.8,3.7625103]
[1725990879150,11.31,135.86,135.8,11.31]
[1725990880462,11.31,135.86,135.8,15.00172888]
[1725990881056,11.31,135.86,135.83,3.6806]
[1725990882655,11.31,135.86,135.8,14.99196217]
[1725990883352,11.31,135.86,135.84,3.6804]
[1725990886866,11.31,135.85,135.83,3.6807]
[1725990887567,11.31,135.85,135.82,3.681]
[1725990887868,11.31,135.85,135.79,11.31]
[1725990888470,11.31,135.85,135.8,11.31]
[1725990889066,11.31,135.85,135.83,3.6807]
[1725990889865,11.31,135.86,135.84,3.6806]
[1725990891172,11.31,135.86,135.85,3.6803]
[1725990892673,11.31,135.86,135.84,3.6804]
[1725990896880,11.31,135.86,135.83,3.6807]
[1725990898182,11.31,135.86,135.84,3.6804]
[1725990905286,1.2764,135.91,135.81,3.66401712]
[1725990905489,1.2764,135.91,135.84,11.31]
[1725990905789,12.5864,135.91,135.84,11.31]
[1725990905992,11.31,135.89,135.83,3.64487041]
[1725990906191,11.31,135.89,135.83,11.31]
[1725990906387,11.31,135.89,135.86,3.6798]
[1725990907696,11.31,135.88,135.86,3.6798]
[1725990912202,11.31,135.88,135.87,3.6798]
[1725990912404,11.31,135.89,135.83,11.31]
[1725990912895,11.31,135.89,135.87,3.6796]
[1725990913398,11.31,135.89,135.88,3.6795]
[1725990913797,11.31,135.9,135.88,3.6795]
[1725990914002,2.5428,135.92,135.9,3.6789]
[1725990914301,13.8528,135.92,135.9,3.6789]
[1725990917295,13.8528,135.92,135.86,11.31]
[1725990917603,11.31,135.88,135.82,11.31]
[1725990917898,11.31,135.88,135.85,3.6801]
[1725990918605,1.3893,135.91,135.86,3.68]
[1725990918790,11.31,135.88,135.86,3.68]
[1725990920207,1.3893,135.91,135.87,3.6797]
[1725990920498,1.3893,135.91,135.83,11.31]
[1725990920499,11.31,135.89,135.83,11.31]
[1725990920706,11.31,135.89,135.83,15.03339226]
[1725990922203,11.31,135.89,135.87,3.6795]
[1725990923201,11.31,135.89,135.88,3.6795]
[1725990924002,12.6993,135.91,135.89,3.6791]
[1725990924902,12.6993,135.91,135.88,3.6794]
[1725990925508,11.31,135.89,135.87,3.6796]
[1725990928308,11.31,135.88,135.86,3.68]
[1725990928904,11.31,135.87,135.77,5.84401683]
[1725990929102,11.31,135.87,135.8,11.31]
[1725990929302,11.31,135.87,135.84,3.6804]
[1725990929504,11.31,135.87,135.81,15.04839802]
[1725990929806,11.31,135.87,135.81,11.31]
[1725990930003,11.31,135.86,135.8,11.31]
[1725990930409,11.31,135.87,135.81,11.31]
[1725990932910,11.31,135.88,135.85,3.6803]
[1725990933609,11.31,135.89,135.8,3.73370126]
[1725990933905,11.31,135.89,135.84,11.31]
[1725990934208,12.6993,135.91,135.87,3.6795]
[1725990934804,12.6993,135.91,135.85,11.31]
[1725990935210,12.6993,135.91,135.88,3.6794]
[1725990935402,12.6993,135.91,135.85,11.31]
[1725990935809,12.6993,135.91,135.87,3.6796]
[1725990936810,12.6993,135.91,135.88,3.6793]
[1725990937212,1.3893,135.91,135.86,11.31]
[1725990937507,13.8528,135.92,135.89,3.679]
[1725990938411,11.31,135.9,135.84,11.31]
[1725990939717,11.31,135.9,135.87,3.6797]
[1725990940010,11.31,135.89,135.86,3.6799]
[1725990940211,11.31,135.89,135.82,12.6246]
[1725990940411,11.31,135.88,135.81,11.31]
[1725990940618,11.31,135.86,135.84,3.6804]
[1725990944818,11.31,135.86,135.81,11.31]
[1725990945212,11.31,135.86,135.76,10.3049]
[1725990945409,11.31,135.85,135.8,11.31]
[1725990946222,11.31,135.85,135.83,3.6807]
[1725990948321,11.31,135.85,135.82,3.6811]
[1725990948911,1.3341,135.91,135.83,3.6808]
[1725990949113,11.31,135.85,135.83,3.6808]
[1725990950830,11.31,135.87,135.81,11.31]
[1725990951527,11.31,135.87,135.83,3.6807]
[1725990954531,11.31,135.85,135.83,3.6807]
[1725990957030,11.31,135.85,135.79,11.31]
[1725990957426,11.31,135.85,135.83,3.6808]
[1725990959131,11.31,135.85,135.84,3.6806]
[1725990959328,11.31,135.86,135.81,11.31]
[1725990959735,11.31,135.86,135.85,3.6803]
[1725990959935,11.31,135.86,135.81,11.31]
[1725990960334,11.31,135.86,135.84,3.6804]
[1725990962638,11.31,135.86,135.85,3.6803]
[1725990962934,11.31,135.86,135.81,11.31]
[1725990963133,11.31,135.86,135.84,3.6804]
[1725990963932,11.31,135.85,135.83,3.6807]
[1725990964637,11.31,135.85,135.84,3.6806]
[1725990964840,11.31,135.86,135.84,3.6806]
[1725990965031,11.31,135.86,135.8,11.31]
[1725990965335,11.31,135.86,135.84,3.6804]
[1725990966134,11.31,135.86,135.83,3.6806]
[1725990967740,11.31,135.86,135.84,3.6806]
[1725990971137,11.31,135.85,135.83,3.6808]
[1725990971940,11.31,135.85,135.76,2.9396]
[1725990972149,11.31,135.82,135.77,6.04570653]
[1725990972338,11.31,135.82,135.76,13.737]
[1725990972539,11.31,135.82,135.8,3.6815]
[1725990972952,11.31,135.81,135.75,11.31]
[1725990973138,11.31,135.81,135.73,4.2805952]
[1725990973139,2.6637,135.83,135.73,15.0783952]
[1725990973339,11.31,135.78,135.74,6.05295945]
[1725990973544,11.31,135.78,135.76,3.6826]
[1725990973744,11.31,135.77,135.63,247.1174]
[1725990973946,2.6637,135.83,135.73,3.6834]
[1725990974140,11.31,135.75,135.69,11.31]
[1725990974346,11.31,135.75,135.7,6.05953502]
[1725990974545,11.31,135.75,135.72,3.6836]
[1725990974741,11.31,135.75,135.69,11.31]
[1725990976050,11.31,135.75,135.73,3.6835]
[1725990978259,11.31,135.75,135.74,3.6833]
[1725990978455,11.31,135.75,135.69,11.31]
[1725990978761,11.31,135.75,135.72,3.6836]
[1725990978953,11.31,135.75,135.69,11.31]
[1725990979358,11.31,135.75,135.73,3.6833]
[1725990979562,11.31,135.75,135.7,11.31]
[1725990980256,11.31,135.74,135.68,3.6847]
[1725990980458,11.31,135.74,135.64,8.71157562]
[1725990980459,11.31,135.71,135.65,6.07826959]
[1725990980652,11.31,135.71,135.65,11.31]
[1725990980849,1.3782,135.76,135.69,3.6845]
[1725990981051,11.31,135.73,135.66,11.31]
[1725990981259,11.31,135.73,135.64,2.8054]
[1725990981455,11.31,135.73,135.69,3.6845]
[1725990981657,11.31,135.73,135.66,11.31]
[1725990981956,1.3782,135.76,135.7,3.6843]
[1725990982157,1.3782,135.76,135.68,11.31]
[1725990982358,1.3782,135.76,135.69,11.31]
[1725990982359,11.31,135.75,135.69,11.31]
[1725990983467,11.31,135.75,135.64,8.88146595]
[1725990983468,11.31,135.74,135.68,11.31]
[1725990984658,11.31,135.74,135.71,3.6839]
[1725990984860,11.31,135.75,135.68,11.31]
[1725990985170,11.31,135.75,135.71,3.6838]
[1725990986063,11.31,135.75,135.72,3.6838]
[1725990986660,11.31,135.75,135.71,3.684]
[1725990987967,11.31,135.75,135.72,3.6837]
[1725990988162,11.31,135.73,135.64,2.8054]
[1725990988361,11.31,135.73,135.67,11.31]
[1725990988562,11.31,135.73,135.7,3.6841]
[1725990989559,1.3782,135.76,135.71,3.6841]
[1725990989764,11.31,135.73,135.67,11.31]
[1725990990969,11.31,135.73,135.7,3.6842]
[1725990994466,11.31,135.72,135.66,3.6853]
[1725990994669,12.5766,135.72,135.64,1.3113]
[1725990994863,12.5766,135.72,135.65,11.31]
[1725990995472,12.5766,135.72,135.69,3.6845]
[1725990996876,12.5766,135.72,135.65,11.31]
[1725990996877,11.31,135.71,135.65,11.31]
[1725990997370,11.31,135.71,135.67,3.685]
[1725990998179,1.2666,135.72,135.65,11.31]
[1725990998477,12.5766,135.72,135.65,11.31]
[1725990998672,12.5766,135.72,135.69,3.6845]
[1725991002076,12.5766,135.72,135.7,3.6843]
[1725991002673,12.5766,135.72,135.66,11.31]
[1725991003282,12.5766,135.72,135.69,3.6845]
[1725991005980,12.5766,135.72,135.7,3.6843]
[1725991008783,12.5766,135.72,135.69,3.6845]
[1725991008974,11.31,135.71,135.69,3.6845]
[1725991010184,11.31,135.71,135.7,3.6844]
[1725991013589,11.31,135.71,135.63,5.01070471]
[1725991013788,1.2666,135.72,135.63,16.32070471]
[1725991013994,11.31,135.7,135.63,16.32070471]
[1725991014298,11.31,135.7,135.64,11.31]
[1725991015388,11.31,135.7,135.63,3.73600471]
[1725991015588,11.31,135.7,135.63,11.31]
[1725991015787,11.31,135.7,135.63,14.95226642]
[1725991016393,11.31,135.68,135.63,11.31]
[1725991017889,1.3233,135.71,135.65,11.31]
[1725991018493,1.3233,135.71,135.66,11.31]
[1725991019194,1.3233,135.71,135.65,11.31]
[1725991019599,1.3233,135.71,135.68,3.6848]
[1725991020699,11.31,135.7,135.67,3.685]
[1725991022903,11.31,135.69,135.63,11.31]
[1725991023298,11.31,135.69,135.66,3.6852]
[1725991024099,11.31,135.69,135.67,3.6851]
[1725991027599,11.31,135.68,135.58,2.7038]
[1725991027802,11.31,135.68,135.61,11.31]
[1725991028198,11.31,135.68,135.64,3.6858]
[1725991028706,11.31,135.66,135.64,3.6858]
[1725991029095,11.31,135.65,135.58,2.7038]
[1725991029299,11.31,135.65,135.59,15.06902532]
[1725991031707,11.31,135.65,135.62,3.6863]
[1725991031908,11.31,135.65,135.59,15.06902532]
[1725991032314,11.31,135.65,135.58,2.7038]
[1725991032502,11.31,135.65,135.59,11.31]
[1725991032906,11.31,135.65,135.63,3.6861]
[1725991035021,1.3586,135.71,135.62,11.31]
[1725991035221,11.31,135.68,135.62,11.31]
[1725991035627,11.31,135.67,135.6,11.31]
[1725991035827,11.31,135.66,135.6,11.31]
[1725991036034,11.31,135.62,135.58,2.7038]
[1725991036517,11.31,135.65,135.58,14.0138]
[1725991036826,11.31,135.65,135.59,11.31]
[1725991037024,11.31,135.65,135.63,3.6862]
[1725991037518,11.31,135.67,135.59,11.31]
[1725991038330,11.31,135.68,135.62,11.31]
[1725991038529,11.31,135.69,135.62,11.31]
[1725991038929,11.31,135.69,135.63,11.31]
[1725991040334,1.3437,135.7,135.67,3.6852]
[1725991040527,1.3437,135.7,135.58,2.7038]
[1725991040528,1.3437,135.7,135.65,11.31]
[1725991041231,1.3437,135.7,135.66,3.6852]
[1725991041728,1.3437,135.7,135.67,3.6851]
[1725991042531,1.3437,135.7,135.68,3.6849]
[1725991042732,1.3437,135.7,135.65,11.31]
[1725991042926,1.3437,135.7,135.67,3.685]
[1725991043431,1.3437,135.7,135.66,3.6852]
[1725991044329,1.3437,135.7,135.67,3.6851]
[1725991046036,1.3437,135.7,135.68,3.6849]
[1725991046232,11.31,135.71,135.68,3.6849]
[1725991047729,11.31,135.71,135.67,3.6851]
[1725991048628,11.31,135.71,135.65,11.31]
[1725991049636,11.31,135.71,135.67,3.685]
[1725991051233,11.31,135.71,135.68,3.6848]
[1725991054243,11.31,135.69,135.62,11.31]
[1725991054547,11.31,135.69,135.63,6.09335256]
[1725991054738,11.31,135.69,135.62,11.31]
[1725991054940,11.31,135.69,135.63,6.09391769]
[1725991055138,11.31,135.69,135.62,11.31]
[1725991055339,11.31,135.69,135.63,6.09387387]
[1725991055539,11.31,135.69,135.62,11.31]
[1725991055744,11.31,135.69,135.63,6.09381351]
[1725991055937,11.31,135.69,135.62,11.31]
[1725991056137,11.31,135.69,135.63,6.09394249]
[1725991056340,11.31,135.69,135.62,11.31]
[1725991056539,11.31,135.69,135.63,6.09389016]
[1725991056741,11.31,135.69,135.62,11.31]
[1725991056946,11.31,135.69,135.63,6.09385281]
[1725991057140,11.31,135.69,135.62,11.31]
[1725991057541,11.31,135.69,135.63,6.09385281]
[1725991057742,11.31,135.69,135.62,11.31]
[1725991057944,11.31,135.69,135.63,6.09385281]
[1725991058145,11.31,135.69,135.63,11.31]
[1725991059746,11.31,135.7,135.64,3.76704453]
[1725991059934,11.31,135.7,135.63,11.31]
[1725991060540,11.31,135.69,135.63,11.31]
[1725991060745,12.6893,135.69,135.63,11.31]
[1725991061342,12.6893,135.69,135.59,7.3746]
[1725991061545,11.31,135.68,135.61,11.31]
[1725991061852,11.31,135.68,135.62,6.09399886]
[1725991062150,11.31,135.68,135.61,11.31]
[1725991062450,11.31,135.68,135.62,6.09418485]
[1725991062647,11.31,135.68,135.61,11.31]
[1725991062946,11.31,135.68,135.62,17.40418485]
[1725991063252,12.6893,135.69,135.63,17.40418485]
[1725991063546,12.6893,135.69,135.63,11.31]
[1725991066139,1.2666,135.72,135.65,11.31]
[1725991066344,11.31,135.71,135.65,11.31]
[1725991066540,11.31,135.71,135.67,3.6851]
[1725991067849,1.2666,135.72,135.58,10.0788]
[1725991067850,11.31,135.69,135.66,3.6853]
[1725991071655,11.31,135.69,135.63,11.31]
[1725991078354,11.31,135.69,135.62,11.31]
[1725991080261,11.31,135.69,135.63,6.09412737]
[1725991080454,11.31,135.69,135.62,11.31]
[1725991081360,11.31,135.68,135.62,11.31]
[1725991081555,11.31,135.67,135.61,11.31]
[1725991082060,11.31,135.67,135.62,6.09465083]
[1725991082255,3.6856,135.66,135.61,11.31]
[1725991082455,11.31,135.67,135.62,6.09458214]
[1725991082660,11.31,135.67,135.61,11.31]
[1725991082961,14.9954,135.67,135.62,6.09461629]
[1725991083262,14.9954,135.67,135.61,11.31]
[1725991083461,14.9954,135.67,135.62,6.09462099]
[1725991083658,14.9954,135.67,135.61,11.31]
[1725991083962,14.9954,135.67,135.62,6.09458683]
[1725991084261,3.6855,135.66,135.61,11.31]
[1725991084463,3.6855,135.66,135.62,6.09455458]
[1725991084655,3.6855,135.66,135.61,11.31]
[1725991084858,3.6855,135.66,135.62,6.09454479]
[1725991085153,3.6855,135.66,135.61,11.31]
[1725991085352,3.6855,135.66,135.62,6.09454479]
[1725991085558,3.6855,135.66,135.61,11.31]
[1725991091461,3.6854,135.67,135.62,17.40467446]
[1725991091664,1.3589,135.68,135.62,11.31]
[1725991092264,11.31,135.69,135.63,6.09427972]
[1725991092470,11.31,135.69,135.62,11.31]
[1725991092668,11.31,135.69,135.63,6.09364938]
[1725991092967,11.31,135.69,135.62,11.31]
[1725991093270,11.31,135.69,135.63,6.09378988]
[1725991093467,11.31,135.69,135.62,11.31]
[1725991093667,11.31,135.69,135.63,6.09378861]
[1725991093869,11.31,135.69,135.62,11.31]
[1725991094070,11.31,135.69,135.63,6.09378861]
[1725991094271,11.31,135.69,135.62,11.31]
[1725991094467,11.31,135.69,135.63,6.09378861]
[1725991094666,11.31,135.69,135.62,11.31]
[1725991094866,11.31,135.69,135.63,6.09378861]
[1725991095065,11.31,135.69,135.64,6.09353065]
[1725991095265,11.31,135.7,135.64,3.74502138]
[1725991095471,1.3181,135.73,135.68,11.31]
[1725991096368,1.3181,135.73,135.7,3.6842]
[1725991098769,1.3181,135.73,135.71,3.6841]
[1725991099175,1.3181,135.73,135.68,11.31]
[1725991099375,1.3181,135.73,135.7,3.6841]
[1725991100774,1.2995,135.77,135.66,3.6449115]
[1725991101075,11.31,135.76,135.7,11.31]
[1725991101581,11.31,135.76,135.73,3.6835]
[1725991102570,11.31,135.76,135.74,3.6833]
[1725991103369,11.31,135.76,135.73,3.6835]
[1725991104681,11.31,135.75,135.73,3.6835]
[1725991105178,11.31,135.75,135.71,3.6839]
[1725991105376,11.31,135.75,135.69,11.31]
[1725991105582,2.6071,135.77,135.69,11.31]
[1725991105583,11.31,135.76,135.69,11.31]
[1725991105980,11.31,135.76,135.73,3.6834]
[1725991114982,11.31,135.76,135.74,3.6833]
[1725991115187,2.6071,135.77,135.72,11.31]
[1725991115377,224.76879,135.79,135.72,11.31]
[1725991115886,213.45879,135.79,135.73,11.31]
[1725991116085,224.76879,135.79,135.75,3.6828]
[1725991116286,11.31,135.78,135.72,11.31]
[1725991116483,11.31,135.76,135.7,11.31]
[1725991116682,11.31,135.76,135.73,3.6834]
[1725991117586,1.2732,135.77,135.74,3.6833]
[1725991119288,1.2732,135.77,135.75,3.6829]
[1725991119490,213.45879,135.79,135.74,11.31]
[1725991120085,224.76879,135.79,135.73,11.31]
[1725991121489,224.76879,135.79,135.75,3.6829]
[1725991122585,224.76879,135.79,135.74,3.6832]
[1725991123189,11.31,135.78,135.73,3.6834]
[1725991123387,16.36163577,135.78,135.73,3.6834]
[1725991123591,17.74763577,135.78,135.73,3.6834]
[1725991124091,14.0401,135.78,135.74,3.6832]
[1725991124485,1.3441,135.78,135.72,11.31]
[1725991124682,1.3441,135.78,135.76,3.6827]
[1725991125487,1.3441,135.78,135.77,3.6825]
[1725991128493,1.3441,135.78,135.76,3.6826]
[1725991128693,1.3441,135.78,135.74,11.31]
[1725991129895,213.45879,135.79,135.74,11.31]
[1725991130692,213.45879,135.79,135.76,3.6826]
[1725991131585,213.45879,135.79,135.75,11.31]
[1725991132487,213.45879,135.79,135.77,11.31]
[1725991133298,213.45879,135.79,135.78,3.6822]
[1725991134392,213.45879,135.79,135.77,14.9924]
[1725991134592,213.45879,135.79,135.77,3.6824]
[1725991143001,213.45879,135.79,135.77,14.9924]
[1725991143900,213.45879,135.79,135.78,3.6822]
[1725991145102,213.45879,135.79,135.78,14.9922]
[1725991146001,213.45879,135.79,135.77,11.31]
[1725991146198,213.45879,135.79,135.71,1.0244]
[1725991146399,213.45879,135.79,135.74,11.31]
[1725991147304,213.45879,135.79,135.73,11.31]
[1725991147703,224.76879,135.79,135.73,11.31]
[1725991147906,226.05289,135.79,135.73,11.31]
[1725991149305,214.74289,135.79,135.73,11.31]
[1725991150201,214.74289,135.79,135.75,3.6828]
[1725991150704,214.74289,135.79,135.75,14.9928]
[1725991152395,213.45879,135.79,135.78,3.6822]
[1725991156201,137.33879,135.79,135.78,3.6822]
[1725991163306,61.21879,135.79,135.78,3.6822]
[1725991165514,38.19779,135.79,135.78,3.6822]
[1725991165913,1.3714,135.84,135.83,3.6808]
[1725991168907,1.3714,135.84,135.82,3.681]
[1725991171511,1.3714,135.84,135.81,14.9912]
[1725991172607,1.3714,135.84,135.83,3.6808]
[1725991173006,1.3714,135.84,135.82,3.6811]
[1725991174214,1.3714,135.84,135.81,3.6813]
[1725991174512,1.3714,135.84,135.81,14.9913]
[1725991174713,1.3714,135.84,135.81,11.31]
[1725991175111,1.3714,135.84,135.82,3.6811]
[1725991179823,1.3714,135.84,135.83,3.6808]
[1725991180223,1.3428,135.86,135.83,3.6808]
[1725991180518,1.3428,135.86,135.84,3.6805]
[1725991180918,1.3461,135.87,135.83,11.31]
[1725991181515,1.3461,135.87,135.84,3.6803]
[1725991181715,1.3461,135.87,135.83,11.31]
[1725991182623,1.3461,135.87,135.84,3.6805]
[1725991182823,1.3461,135.87,135.83,11.31]